fUST/lending_fUST_20250701
["ID","MTS","AMOUNT","RATE_DAILY","PERIOD"]
[368767421,1751353841791,-228.74372872,0.00021626,2]
[368767422,1751353841800,-639.04049187,0.00021762,5]
[368767423,1751353841809,-577.03816358,0.00021809,2]
[368767424,1751353841820,-1922.96183642,0.00021809,2]
[368767425,1751353841830,-758.14389478,0.00021821,2]
[368767426,1751353841840,-1148.07,0.00021875,2]
[368767427,1751353841849,-776.26,0.00021875,2]
[368767428,1751353841859,-879.21,0.00021875,2]
[368767429,1751353841868,-725.79,0.00021875,2]
[368767430,1751353841878,-830.75,0.00021875,2]
[368767431,1751353841887,-460.0,0.00021875,2]
[368767432,1751353841896,-460.0,0.00021875,2]
[368767433,1751353841906,-537.97,0.00021875,2]
[368767434,1751353841916,-484.4,0.00021876,2]
[368767435,1751353841926,-460.0,0.00021876,2]
[368767436,1751353841935,-1324.71,0.00021876,2]
[368767437,1751353841945,-648.17,0.00021876,2]
[368767438,1751353841958,-460.0,0.00021876,2]
[368767439,1751353841968,-460.0,0.00021876,2]
[368767440,1751353841977,-605.77127993,0.00021877,2]
[368767441,1751353841989,-20.59872007,0.00021877,2]
[368767442,1751353841998,-239.43833507,0.00021877,2]
[368767443,1751353842018,-285.01166493,0.00021877,2]
[368767444,1751353842028,-544.87,0.00021877,2]
[368767445,1751353842039,-566.44,0.00021877,2]
[368767446,1751353842049,-1506.24,0.00021877,2]
[368767447,1751353842058,-217.00156508,0.00021886,2]
[368767448,1751353842067,-1207.20432027,0.00021891,2]
[368767452,1751353842632,-278.21992796,0.00021891,2]
[368767453,1751353842701,-1243.82987499,0.00021891,2]
[368767454,1751353842710,-1761.38,0.000219,2]
[368767455,1751353842720,-403.18378185,0.00021918,7]
[368767456,1751353842730,-639.04049187,0.00021969,6]
[368767457,1751353842740,-500.0,0.00021999,2]
[368767459,1751353842749,-500.0,0.00021999,2]
[368767460,1751353842758,-500.0,0.00021999,2]
[368767461,1751353842768,-343.17593341,0.00021999,2]
[368767462,1751353842777,-474.14293623,0.00021999,2]
[368767463,1751353842786,-500.0,0.00021999,2]
[368767464,1751353842795,-500.0,0.00021999,2]
[368767465,1751353842805,-500.0,0.00021999,2]
[368767466,1751353842814,-500.0,0.00021999,2]
[368767467,1751353842823,-203.24799302,0.00021999,2]
[368767468,1751353842832,-21490.15432401,0.00022,2]
[368767469,1751353842843,-597.50656881,0.00022,2]
[368767470,1751353842855,-1589.6451734,0.00022,2]
[368767471,1751353842870,-63346.06688081,0.00022,2]
[368767472,1751353842880,-56701.4620894,0.00022,7]
[368767473,1751353843067,-0.00833602,0.00022,7]
[368767483,1751353851218,-150.13123741,0.00022,7]
[368767484,1751353851447,-795.61375639,0.00022,7]
[368767485,1751353851460,-272.19120742,0.00022,7]
[368767486,1751353851472,-5400.24052982,0.00022,7]
[368767487,1751353851484,-1994.27866387,0.00022,7]
[368767488,1751353851822,-0.28574836,0.00022,7]
[368767489,1751353851834,-697.87716031,0.00022,7]
[368767491,1751354066587,222.07,0.000183,30]
[368767492,1751354073460,-300.0,0.00018038,2]
[368767493,1751354073484,-85.25249538,0.00018039,2]
[368767494,1751354077197,-374.74750462,0.00018039,2]
[368767495,1751354077221,-105.18501303,0.00018039,2]
[368767496,1751354080105,-178.53683612,0.00018039,2]
[368767497,1751354083073,-176.27815085,0.00018039,2]
[368767498,1751354083096,-47.06624532,0.00018039,2]
[368767499,1751354086030,-156.16817681,0.00018039,2]
[368767500,1751354088524,-256.76557787,0.00018039,2]
[368767501,1751354088555,-160.06051857,0.00018039,2]
[368767502,1751354092152,178.563802,0.00013699,2]
[368767503,1751354149335,-216.62346755,0.00018039,2]
[368767504,1751354153505,-243.37653245,0.00018039,2]
[368767505,1751354153528,-48.49152482,0.00018039,2]
[368767506,1751354157400,-158.86805727,0.00018039,2]
[368767507,1751354161249,-92.64041791,0.00018039,2]
[368767508,1751354161274,-100.22763936,0.00018039,2]
[368767509,1751354165743,-342.81067904,0.00018039,2]
[368767514,1751354433703,-192.36429118,0.00018039,2]
[368767515,1751354438373,-218.86526479,0.00018039,2]
[368767516,1751354440056,-48.77044403,0.00018039,2]
[368767517,1751354440082,-231.88927025,0.00018039,2]
[368767518,1751354446278,-363.98273888,0.00018039,2]
[368767521,1751354571255,528.32504376,0.00017941,2]
[368767523,1751354612426,500.0,0.00025219,60]
[368767524,1751354652191,14238.65701171,0.00018,2]
[368767525,1751354652221,2127.17444127,0.00018,2]
[368767526,1751354718551,-164.40000749,0.00018039,2]
[368767527,1751354720513,-152.70048686,0.00018039,2]
[368767528,1751354722306,-391.46128161,0.00018039,2]
[368767529,1751354726392,-71.37822404,0.00018039,2]
[368767530,1751354726418,-256.55366161,0.00018039,2]
[368767531,1751354743778,155.0,0.00025221,60]
[368767532,1751354816116,-203.44633839,0.00018039,2]
[368767533,1751354816138,-117.77564607,0.00018039,2]
[368767535,1751354829420,346.05,0.00018,2]
[368767536,1751354843671,615.55598893,0.00017941,2]
[368767537,1751354850086,-300.0,0.00018038,2]
[368767538,1751354850108,-182.22435393,0.00018039,2]
[368767539,1751354850131,-1045.0,0.00018039,2]
[368767540,1751354850151,-757.4365205,0.00018039,2]
[368767551,1751355006501,-151.95642009,0.00018039,2]
[368767552,1751355008539,-152.09943122,0.00018039,2]
[368767553,1751355013891,-138.50762819,0.00018039,2]
[368767554,1751355013916,-60.95508043,0.00018039,2]
[368767555,1751355018389,-239.04491957,0.00018039,2]
[368767556,1751355018412,-69.51006064,0.0001804,2]
[368767584,1751355032588,-453.81426543,0.00018039,2]
[368767586,1751355032629,-6.18573457,0.00018039,2]
[368767587,1751355032639,-390.48993936,0.0001804,2]
[368767588,1751355032648,-85.24286357,0.0001804,2]
[368767589,1751355032671,-374.75713643,0.0001804,2]
[368767590,1751355032681,-460.0,0.0001804,2]
[368767591,1751355032691,-460.0,0.0001804,2]
[368767592,1751355032700,-460.0,0.0001804,2]
[368767593,1751355032710,-164.89678594,0.0001804,2]
[368767594,1751355032723,-295.10321406,0.0001804,2]
[368767595,1751355032734,-460.0,0.0001804,2]
[368767596,1751355032743,-460.0,0.0001804,2]
[368767597,1751355032758,-460.0,0.0001804,2]
[368767598,1751355032767,-460.0,0.0001804,2]
[368767599,1751355032777,-460.0,0.0001804,2]
[368767600,1751355032787,-308.17508319,0.0001804,2]
[368767601,1751355032796,-460.0,0.0001804,2]
[368767602,1751355032806,-460.0,0.0001804,2]
[368767603,1751355032815,-460.0,0.0001804,2]
[368767604,1751355032825,-897.13,0.0001804,2]
[368767605,1751355032834,-546.51,0.0001804,2]
[368767606,1751355032844,-460.0,0.0001804,2]
[368767608,1751355032853,-460.0,0.0001804,2]
[368767610,1751355032862,-460.0,0.0001804,2]
[368767611,1751355032872,-460.0,0.0001804,2]
[368767612,1751355032883,-499.67,0.0001804,2]
[368767613,1751355032893,-571.53,0.0001804,2]
[368767614,1751355032904,-460.0,0.0001804,2]
[368767615,1751355032913,-460.0,0.0001804,2]
[368767616,1751355032924,-460.0,0.0001804,2]
[368767617,1751355032934,-567.08,0.0001804,2]
[368767618,1751355032944,-462.22385193,0.0001804,2]
[368767619,1751355032953,-329.13,0.0001804,2]
[368767620,1751355032963,-460.0,0.0001804,2]
[368767621,1751355032975,-460.0,0.0001804,2]
[368767622,1751355032985,-209.35,0.0001804,2]
[368767623,1751355032994,-460.0,0.0001804,2]
[368767624,1751355033005,-468.28897007,0.0001804,2]
[368767625,1751355033015,-376.2,0.0001804,2]
[368767626,1751355033024,-460.0,0.0001804,2]
[368767627,1751355033033,-460.0,0.0001804,2]
[368767628,1751355033042,-460.0,0.0001804,2]
[368767629,1751355033052,-460.0,0.0001804,2]
[368767630,1751355033062,-460.0,0.0001804,2]
[368767631,1751355033071,-460.0,0.0001804,2]
[368767632,1751355033081,-460.0,0.0001804,2]
[368767633,1751355033090,-460.0,0.0001804,2]
[368767634,1751355033099,-460.0,0.0001804,2]
[368767635,1751355033110,-460.0,0.0001804,2]
[368767636,1751355033119,-460.0,0.0001804,2]
[368767637,1751355033128,-460.0,0.00018041,2]
[368767638,1751355033138,-460.0,0.00018041,2]
[368767639,1751355033147,-460.0,0.00018041,2]
[368767640,1751355033156,-160.60937209,0.00018041,2]
[368767641,1751355033166,-4166.79,0.00018041,2]
[368767642,1751355033176,-4166.79,0.00018041,2]
[368767643,1751355033185,-4166.79,0.00018041,2]
[368767644,1751355033194,-4166.79,0.00018041,2]
[368767645,1751355033204,-2092.41192339,0.00018041,2]
[368767646,1751355033216,-1540.06268694,0.00018041,2]
[368767647,1751355033241,-534.31538967,0.00018041,2]
[368767648,1751355033250,-4166.79,0.00018041,2]
[368767649,1751355033260,-460.0,0.0001831,2]
[368767650,1751355033270,-460.0,0.0001831,2]
[368767651,1751355033280,-460.0,0.0001831,2]
[368767652,1751355033290,-460.0,0.0001831,2]
[368767653,1751355033299,-460.0,0.0001831,2]
[368767654,1751355033308,-447.40420304,0.0001831,2]
[368767655,1751355033318,-460.0,0.0001831,2]
[368767656,1751355033329,-460.0,0.0001831,2]
[368767657,1751355033343,-460.0,0.0001831,2]
[368767658,1751355033353,-460.0,0.0001831,2]
[368767659,1751355033362,-460.0,0.0001831,2]
[368767660,1751355033372,-205.44826112,0.0001831,2]
[368767661,1751355033383,-460.0,0.0001831,2]
[368767662,1751355033396,-473.12,0.0001831,2]
[368767663,1751355033405,-460.0,0.00018311,2]
[368767664,1751355033416,-460.57559103,0.00018311,2]
[368767665,1751355033426,-382.24878746,0.00018311,2]
[368767666,1751355033436,-582.54,0.00018311,2]
[368767667,1751355033446,-460.0,0.00018311,2]
[368767668,1751355033455,-460.0,0.00018311,2]
[368767669,1751355033465,-460.0,0.00018311,2]
[368767670,1751355033477,-460.0,0.00018311,2]
[368767671,1751355033487,-557.0148698,0.00018311,2]
[368767672,1751355033497,-263.58212928,0.00018311,2]
[368767673,1751355033507,-460.0,0.00018311,2]
[368767674,1751355033518,-460.0,0.00018311,2]
[368767675,1751355033528,-460.0,0.00018311,2]
[368767676,1751355033538,-403.41151966,0.00018311,2]
[368767682,1751355038350,-460.0,0.0001804,2]
[368767683,1751355038360,-57.68848034,0.00018311,2]
[368767684,1751355038370,-460.0,0.00018311,2]
[368767685,1751355038379,-460.0,0.00018311,2]
[368767686,1751355038388,-38.21725441,0.00018311,2]
[368767687,1751355038400,-426.90698559,0.00018311,2]
[368767688,1751355038410,-460.0,0.00018311,2]
[368767689,1751355038419,-500.0,0.00018311,2]
[368767690,1751355038429,-460.0,0.00018311,2]
[368767691,1751355038438,-460.0,0.00018311,2]
[368767692,1751355038448,-460.0,0.00018311,2]
[368767693,1751355038457,-460.0,0.00018311,2]
[368767694,1751355038467,-460.0,0.00018311,2]
[368767695,1751355038476,-460.0,0.00018311,2]
[368767696,1751355038485,-460.0,0.00018311,2]
[368767697,1751355038494,-580.5,0.00018311,2]
[368767698,1751355038503,-460.0,0.00018311,2]
[368767699,1751355038512,-460.0,0.00018311,2]
[368767700,1751355038522,-460.0,0.00018311,2]
[368767701,1751355038531,-460.0,0.00018311,2]
[368767702,1751355038540,-460.0,0.00018311,2]
[368767703,1751355038550,-460.0,0.00018312,2]
[368767704,1751355038559,-349.5651714,0.00018312,2]
[368767705,1751355038571,-110.4348286,0.00018312,2]
[368767706,1751355038580,-460.0,0.00018312,2]
[368767707,1751355038590,-460.0,0.00018312,2]
[368767708,1751355038602,-460.0,0.00018312,2]
[368767709,1751355038611,-460.0,0.00018312,2]
[368767710,1751355038620,-420.99424621,0.00018312,2]
[368767711,1751355038631,-39.00575379,0.00018312,2]
[368767712,1751355038641,-460.0,0.00018312,2]
[368767713,1751355038650,-161.59167935,0.00018312,2]
[368767714,1751355038659,-469.60422701,0.00018312,2]
[368767715,1751355038668,-460.0,0.00018312,2]
[368767716,1751355038677,-460.0,0.00018312,2]
[368767717,1751355038686,-460.0,0.00018312,2]
[368767718,1751355038696,-460.0,0.00018312,2]
[368767719,1751355038705,-460.0,0.00018312,2]
[368767720,1751355038715,-460.0,0.00018312,2]
[368767721,1751355038725,-460.0,0.00018312,2]
[368767722,1751355038735,-504.51,0.00018312,2]
[368767723,1751355038745,-460.0,0.00018312,2]
[368767724,1751355038754,-594.9,0.00018312,2]
[368767725,1751355038763,-460.0,0.00018312,2]
[368767726,1751355038772,-460.0,0.00018312,2]
[368767727,1751355038782,-460.0,0.00018312,2]
[368767728,1751355038791,-460.0,0.00018312,2]
[368767729,1751355038804,-571.18889458,0.00018312,2]
[368767730,1751355038814,-460.0,0.00018312,2]
[368767731,1751355038823,-460.0,0.00018312,2]
[368767732,1751355038833,-460.0,0.00018312,2]
[368767733,1751355038842,-460.0,0.00018312,2]
[368767734,1751355038852,-460.0,0.00018312,2]
[368767735,1751355038862,-460.0,0.00018312,2]
[368767736,1751355038872,-224.52396607,0.00018312,2]
[368767737,1751355038882,-460.0,0.00018312,2]
[368767738,1751355038891,-460.0,0.00018312,2]
[368767739,1751355038900,-460.0,0.00018312,2]
[368767740,1751355038910,-460.0,0.00018312,2]
[368767741,1751355038919,-460.0,0.00018312,2]
[368767742,1751355038929,-460.0,0.00018312,2]
[368767743,1751355038938,-460.0,0.00018312,2]
[368767744,1751355038947,-460.0,0.00018312,2]
[368767745,1751355038956,-460.0,0.00018312,2]
[368767746,1751355038965,-460.0,0.00018312,2]
[368767747,1751355038975,-460.0,0.00018312,2]
[368767748,1751355038984,-427.83,0.00018312,2]
[368767749,1751355038993,-380.33304638,0.00018312,2]
[368767750,1751355039002,-460.0,0.00018312,2]
[368767751,1751355039011,-460.0,0.00018312,2]
[368767752,1751355039020,-464.97585467,0.00018312,2]
[368767753,1751355039030,-460.0,0.00018312,2]
[368767754,1751355039039,-460.0,0.00018312,2]
[368767755,1751355039048,-460.0,0.00018312,2]
[368767756,1751355039057,-460.0,0.00018312,2]
[368767757,1751355039067,-460.0,0.00018312,2]
[368767758,1751355039079,-913.52,0.00018312,2]
[368767759,1751355039089,-460.0,0.00018312,2]
[368767760,1751355039100,-923.98,0.00018312,2]
[368767761,1751355039109,-460.0,0.00018312,2]
[368767762,1751355039119,-460.0,0.00018312,2]
[368767763,1751355039129,-460.0,0.00018312,2]
[368767764,1751355039139,-460.0,0.00018312,2]
[368767765,1751355039148,-460.0,0.00018312,2]
[368767766,1751355039158,-460.0,0.00018312,2]
[368767767,1751355039168,-368.02619584,0.00018312,2]
[368767768,1751355039177,-460.0,0.00018312,2]
[368767769,1751355039187,-460.0,0.00018312,2]
[368767770,1751355039196,-460.0,0.00018312,2]
[368767771,1751355039205,-460.0,0.00018312,2]
[368767772,1751355039215,-460.0,0.00018312,2]
[368767773,1751355039225,-4166.79,0.00018313,2]
[368767774,1751355039235,-500.0,0.00018313,2]
[368767775,1751355039245,-4166.79,0.00018314,2]
[368767776,1751355039254,-292.63,0.00018314,2]
[368767777,1751355039266,-460.0,0.00018314,2]
[368767778,1751355039278,-460.0,0.00018314,2]
[368767779,1751355039290,-460.0,0.00018314,2]
[368767780,1751355039300,-460.0,0.00018314,2]
[368767781,1751355039406,-897.13,0.00018314,2]
[368767782,1751355039417,-546.51,0.00018314,2]
[368767783,1751355039427,-460.0,0.00018314,2]
[368767784,1751355039436,-460.0,0.00018314,2]
[368767785,1751355039446,-460.0,0.00018314,2]
[368767786,1751355039455,-499.67,0.00018314,2]
[368767787,1751355039465,-571.53,0.00018314,2]
[368767788,1751355039475,-462.02128124,0.00018314,2]
[368767789,1751355039485,-460.0,0.00018314,2]
[368767790,1751355039494,-567.08,0.00018314,2]
[368767791,1751355039504,-460.0,0.00018314,2]
[368767792,1751355039514,-460.0,0.00018314,2]
[368767793,1751355039523,-235.42,0.00018314,2]
[368767794,1751355039533,-152.98,0.00018314,2]
[368767795,1751355039542,-460.0,0.00018314,2]
[368767796,1751355039552,-460.0,0.00018314,2]
[368767797,1751355039562,-460.0,0.00018314,2]
[368767798,1751355039572,-460.0,0.00018314,2]
[368767799,1751355039582,-460.0,0.00018314,2]
[368767800,1751355039592,-460.0,0.00018314,2]
[368767801,1751355039602,-460.0,0.00018314,2]
[368767802,1751355039611,-4166.79,0.00018315,2]
[368767803,1751355039621,-460.0,0.00018584,2]
[368767804,1751355039631,-460.0,0.00018584,2]
[368767805,1751355039641,-460.0,0.00018584,2]
[368767806,1751355039650,-460.0,0.00018584,2]
[368767807,1751355039660,-460.0,0.00018584,2]
[368767808,1751355039670,-473.12,0.00018584,2]
[368767809,1751355039679,-463.25,0.00018585,2]
[368767810,1751355039689,-460.0,0.00018585,2]
[368767811,1751355039699,-460.0,0.00018585,2]
[368767812,1751355039708,-460.0,0.00018585,2]
[368767813,1751355039718,-460.0,0.00018585,2]
[368767814,1751355039729,-460.0,0.00018585,2]
[368767815,1751355039739,-502.54,0.00018585,2]
[368767816,1751355039748,-460.0,0.00018585,2]
[368767818,1751355039758,-460.0,0.00018585,2]
[368767819,1751355039767,-225.91,0.00018585,2]
[368767820,1751355039777,-460.0,0.00018586,2]
[368767821,1751355039786,-460.0,0.00018586,2]
[368767822,1751355039795,-460.0,0.00018586,2]
[368767823,1751355039805,-460.0,0.00018586,2]
[368767824,1751355039814,-460.0,0.00018586,2]
[368767825,1751355039823,-460.0,0.00018586,2]
[368767826,1751355039833,-460.0,0.00018586,2]
[368767827,1751355039842,-460.0,0.00018586,2]
[368767828,1751355039852,-460.0,0.00018586,2]
[368767829,1751355039861,-460.0,0.00018586,2]
[368767830,1751355039872,-460.0,0.00018586,2]
[368767831,1751355039882,-460.0,0.00018586,2]
[368767832,1751355039892,-460.0,0.00018586,2]
[368767833,1751355039905,-460.0,0.00018586,2]
[368767834,1751355039916,-460.0,0.00018586,2]
[368767835,1751355039925,-913.52,0.00018586,2]
[368767836,1751355039937,-460.0,0.00018586,2]
[368767837,1751355039952,-923.98,0.00018586,2]
[368767838,1751355039961,-460.0,0.00018586,2]
[368767839,1751355039971,-460.0,0.00018586,2]
[368767840,1751355039981,-460.0,0.00018586,2]
[368767841,1751355039990,-4166.79,0.00018588,2]
[368767842,1751355039999,-460.0,0.00018588,2]
[368767843,1751355040008,-460.0,0.00018588,2]
[368767844,1751355040017,-460.0,0.00018588,2]
[368767845,1751355040026,-897.13,0.00018588,2]
[368767846,1751355040035,-546.51,0.00018588,2]
[368767847,1751355040044,-460.0,0.00018588,2]
[368767848,1751355040054,-359.26,0.00018588,2]
[368767849,1751355040063,-460.0,0.00018588,2]
[368767850,1751355040072,-499.67,0.00018588,2]
[368767851,1751355040081,-571.53,0.00018588,2]
[368767852,1751355040091,-460.0,0.00018588,2]
[368767853,1751355040101,-567.08,0.00018588,2]
[368767854,1751355040111,-460.0,0.00018588,2]
[368767855,1751355040120,-460.0,0.00018588,2]
[368767856,1751355040130,-460.0,0.00018588,2]
[368767857,1751355040139,-236.39,0.00018588,2]
[368767858,1751355040149,-460.0,0.00018588,2]
[368767859,1751355040158,-460.0,0.00018588,2]
[368767860,1751355040167,-460.0,0.00018588,2]
[368767861,1751355040178,-460.0,0.00018588,2]
[368767862,1751355040188,-4166.79,0.00018589,2]
[368767863,1751355040197,-200.05227621,0.00018655,2]
[368767864,1751355040206,-492.30418994,0.00018704,2]
[368767865,1751355040216,-500.0,0.00018704,2]
[368767866,1751355040226,-500.0,0.00018704,2]
[368767867,1751355040236,-468.33,0.0001885,3]
[368767868,1751355040246,-234.17,0.0001885,3]
[368767869,1751355040255,-702.51,0.0001885,3]
[368767870,1751355040264,-460.0,0.00018858,2]
[368767871,1751355040274,-303.22,0.00018858,2]
[368767872,1751355040283,-460.0,0.00018858,2]
[368767873,1751355040293,-473.12,0.00018858,2]
[368767874,1751355040302,-500.0,0.00018859,2]
[368767875,1751355040313,-460.0,0.00018859,2]
[368767876,1751355040324,-460.0,0.00018859,2]
[368767877,1751355040336,-460.0,0.00018859,2]
[368767878,1751355040347,-460.0,0.00018859,2]
[368767880,1751355040357,-460.0,0.00018859,2]
[368767882,1751355040366,-460.0,0.00018859,2]
[368767884,1751355040376,-460.0,0.00018859,2]
[368767886,1751355040387,-460.0,0.0001886,2]
[368767888,1751355040396,-460.0,0.0001886,2]
[368767890,1751355040407,-235.18,0.0001886,2]
[368767891,1751355040416,-460.0,0.0001886,2]
[368767892,1751355040427,-275.49567687,0.0001886,2]
[368767893,1751355040436,-460.0,0.0001886,2]
[368767894,1751355040448,-460.0,0.0001886,2]
[368767895,1751355040457,-460.0,0.0001886,2]
[368767896,1751355040467,-460.0,0.0001886,2]
[368767897,1751355040478,-460.0,0.0001886,2]
[368767898,1751355040487,-460.0,0.0001886,2]
[368767899,1751355040497,-460.0,0.0001886,2]
[368767900,1751355040506,-460.0,0.0001886,2]
[368767901,1751355040516,-460.0,0.0001886,2]
[368767902,1751355040526,-913.52,0.0001886,2]
[368767903,1751355040535,-460.0,0.0001886,2]
[368767904,1751355040545,-923.98,0.0001886,2]
[368767905,1751355040554,-460.0,0.0001886,2]
[368767906,1751355040564,-460.0,0.0001886,2]
[368767907,1751355040577,-460.0,0.0001886,2]
[368767908,1751355040590,-4166.79,0.00018862,2]
[368767909,1751355040604,-460.0,0.00018862,2]
[368767910,1751355040617,-460.0,0.00018862,2]
[368767911,1751355040629,-897.13,0.00018862,2]
[368767912,1751355040640,-546.51,0.00018862,2]
[368767913,1751355040651,-460.0,0.00018862,2]
[368767914,1751355040663,-460.0,0.00018862,2]
[368767915,1751355040675,-499.67,0.00018862,2]
[368767916,1751355040687,-571.53,0.00018862,2]
[368767917,1751355040700,-460.0,0.00018862,2]
[368767918,1751355040713,-567.08,0.00018862,2]
[368767919,1751355040725,-460.0,0.00018862,2]
[368767920,1751355040737,-460.0,0.00018862,2]
[368767921,1751355040749,-460.0,0.00018862,2]
[368767922,1751355040760,-460.0,0.00018862,2]
[368767923,1751355040772,-460.0,0.00018862,2]
[368767924,1751355040785,-236.02,0.00018862,2]
[368767925,1751355040797,-1926.44303129,0.000189,2]
[368767926,1751355040809,-500.0,0.00018948,2]
[368767927,1751355040821,-4166.79,0.00018949,2]
[368767928,1751355040833,-501.006998,0.00018959,2]
[368767929,1751355040844,-160.0,0.00018979,2]
[368767930,1751355040856,-160.0,0.00018979,2]
[368767931,1751355040869,-160.0,0.00018979,2]
[368767932,1751355040881,-160.0,0.00018979,2]
[368767933,1751355040892,-837.20943635,0.00018979,2]
[368767934,1751355040904,-215.01728679,0.00018979,2]
[368767935,1751355040914,-160.0,0.00018979,2]
[368767936,1751355040924,-847.53272281,0.00018979,2]
[368767937,1751355040935,-160.0,0.00018979,2]
[368767938,1751355040946,-12571.40790328,0.00018979,2]
[368767939,1751355040957,-213.87551669,0.00018979,2]
[368767940,1751355040968,-230.32585361,0.00018979,2]
[368767941,1751355040981,-404.72564488,0.00019,2]
[368767942,1751355040992,-207.4,0.0001902,2]
[368767943,1751355041004,-5000.0,0.0001902,2]
[368767944,1751355041014,-4807.53033408,0.0001902,2]
[368767945,1751355041026,-500.0,0.0001902,2]
[368767946,1751355041037,-500.0,0.0001902,2]
[368767947,1751355041049,-500.0,0.0001902,2]
[368767948,1751355041062,-500.0,0.0001902,2]
[368767949,1751355041075,-690.642,0.0001902,2]
[368767950,1751355041086,-500.0,0.0001902,2]
[368767951,1751355041096,-500.0,0.0001902,2]
[368767952,1751355041106,-500.0,0.0001902,2]
[368767953,1751355041116,-500.0,0.0001902,2]
[368767954,1751355041126,-500.0,0.0001902,2]
[368767955,1751355041137,-500.0,0.0001902,2]
[368767956,1751355041148,-25000.0,0.0001902,2]
[368767957,1751355041162,-8906.75071779,0.0001902,2]
[368767958,1751355041173,-500.0,0.0001902,2]
[368767959,1751355041185,-500.0,0.0001902,2]
[368767960,1751355041195,-500.0,0.0001902,2]
[368767961,1751355041205,-500.0,0.0001902,2]
[368767962,1751355041216,-500.0,0.0001902,2]
[368767963,1751355041228,-500.0,0.0001902,2]
[368767964,1751355041239,-251.46506806,0.0001902,2]
[368767965,1751355041250,-716.195754,0.00019075,2]
[368767966,1751355041261,-742.6949969,0.0001913,2]
[368767967,1751355041271,-235.28,0.00019132,2]
[368767968,1751355041281,-460.0,0.00019132,2]
[368767969,1751355041292,-473.12,0.00019132,2]
[368767970,1751355041303,-500.0,0.00019133,2]
[368767971,1751355041315,-460.0,0.00019133,2]
[368767972,1751355041326,-460.0,0.00019133,2]
[368767973,1751355041340,-460.0,0.00019133,2]
[368767974,1751355041350,-474.58,0.00019133,2]
[368767975,1751355041360,-460.0,0.00019133,2]
[368767976,1751355041370,-189.71,0.00019133,2]
[368767977,1751355041382,-529.09,0.00019133,2]
[368767978,1751355041393,-319.47,0.00019134,2]
[368767979,1751355041405,-460.0,0.00019134,2]
[368767980,1751355041417,-460.0,0.00019134,2]
[368767981,1751355041428,-460.0,0.00019134,2]
[368767982,1751355041438,-232.2,0.00019134,2]
[368767983,1751355041451,-476.9616816,0.00019134,2]
[368767984,1751355041462,-460.0,0.00019134,2]
[368767985,1751355041473,-460.0,0.00019134,2]
[368767986,1751355041486,-460.0,0.00019134,2]
[368767987,1751355041497,-460.0,0.00019134,2]
[368767988,1751355041507,-460.0,0.00019134,2]
[368767989,1751355041518,-460.0,0.00019134,2]
[368767990,1751355041529,-913.52,0.00019134,2]
[368767991,1751355041540,-923.98,0.00019134,2]
[368767992,1751355041551,-460.0,0.00019134,2]
[368767993,1751355041562,-460.0,0.00019134,2]
[368767994,1751355041573,-460.0,0.00019134,2]